fUSD/lending_fUSD_20250623
["ID","MTS","AMOUNT","RATE_DAILY","PERIOD"]
[367134839,1750665116894,-490.0,0.00029315,3]
[367134840,1750665116903,-151.282128,0.00029315,7]
[367134841,1750665116913,-490.0,0.00029315,3]
[367134842,1750665116923,-936.53,0.00029315,3]
[367134843,1750665116934,-490.0,0.00029315,3]
[367134844,1750665116946,-490.0,0.00029315,3]
[367134845,1750665116955,-490.0,0.00029315,3]
[367134846,1750665116964,-490.0,0.00029315,3]
[367134847,1750665116975,-490.0,0.00029315,3]
[367134848,1750665116984,-898.51,0.00029315,3]
[367134849,1750665116994,-934.07,0.00029315,3]
[367134850,1750665117003,-490.0,0.00029315,3]
[367134851,1750665117014,-490.0,0.00029315,3]
[367134852,1750665117023,-1055.8,0.00029315,3]
[367134853,1750665117033,-511.53,0.00029315,3]
[367134854,1750665117044,-490.0,0.00029315,3]
[367134855,1750665117053,-157.587422,0.00029315,7]
[367134856,1750665117063,-600.83,0.00029315,3]
[367134857,1750665117072,-490.0,0.00029315,3]
[367134858,1750665117081,-490.0,0.00029315,3]
[367134859,1750665117091,-588.13,0.00029315,3]
[367134860,1750665117101,-490.0,0.00029315,3]
[367134861,1750665117111,-490.0,0.00029315,3]
[367134862,1750665117119,-490.0,0.00029315,3]
[367134863,1750665117129,-490.0,0.00029315,3]
[367134864,1750665117138,-852.34,0.00029315,3]
[367134865,1750665117148,-972.8,0.00029315,3]
[367134866,1750665117157,-613.97,0.00029315,3]
[367134867,1750665117167,-490.0,0.00029315,3]
[367134868,1750665117176,-151.0,0.00029315,7]
[367134869,1750665117186,-490.0,0.00029315,3]
[367134870,1750665117195,-151.0,0.00029315,7]
[367134871,1750665117204,-490.0,0.00029315,3]
[367134872,1750665117213,-490.0,0.00029315,3]
[367134873,1750665117223,-490.0,0.00029315,3]
[367134874,1750665117232,-490.0,0.00029315,3]
[367134875,1750665117242,-490.0,0.00029315,3]
[367134876,1750665117251,-950.12,0.00029315,3]
[367134877,1750665117260,-579.89872842,0.00029315,3]
[367134878,1750665117269,-490.0,0.00029315,3]
[367134879,1750665117279,-732.25,0.00029315,3]
[367134880,1750665117289,-678.97,0.00029315,3]
[367134881,1750665117298,-490.0,0.00029315,3]
[367134882,1750665117308,-838.48,0.00029315,3]
[367134883,1750665117318,-699.02,0.00029315,3]
[367134884,1750665117327,-490.0,0.00029315,3]
[367134885,1750665117337,-564.25,0.00029315,3]
[367134886,1750665117346,-1071.68,0.00029315,3]
[367134887,1750665117355,-490.0,0.00029315,3]
[367134888,1750665117365,-699.34,0.00029315,3]
[367134889,1750665117375,-662.89,0.00029315,3]
[367134890,1750665117384,-564.94,0.00029315,3]
[367134891,1750665117394,-490.0,0.00029315,3]
[367134892,1750665117404,-490.0,0.00029315,3]
[367134893,1750665117413,-490.0,0.00029315,3]
[367134894,1750665117424,-1230.15,0.00029315,3]
[367134895,1750665117434,-582.52,0.00029315,3]
[367134896,1750665117443,-943.42,0.00029315,3]
[367134897,1750665117453,-999.65,0.00029315,3]
[367134898,1750665117462,-490.0,0.00029315,3]
[367134899,1750665117472,-490.0,0.00029315,3]
[367134900,1750665117482,-561.08442549,0.00029315,3]
[367134901,1750665117491,-1066.85,0.00029315,3]
[367134902,1750665117501,-1100.39,0.00029315,3]
[367134903,1750665117510,-629.46,0.00029315,3]
[367134904,1750665117520,-620.31,0.00029315,3]
[367134905,1750665117530,-834.77,0.00029315,3]
[367134906,1750665117540,-490.0,0.00029315,3]
[367134907,1750665117549,-861.89,0.00029315,3]
[367134908,1750665117559,-500.99,0.00029315,3]
[367134909,1750665117569,-629.12,0.00029315,3]
[367134910,1750665117579,-1274.6,0.00029315,3]
[367134911,1750665117588,-1305.62,0.00029315,3]
[367134912,1750665117598,-557.46,0.00029315,3]
[367134913,1750665117608,-774.41,0.00029315,3]
[367134914,1750665117618,-549.68,0.00029315,3]
[367134915,1750665117627,-630.81,0.00029315,3]
[367134916,1750665117637,-1051.6,0.00029315,3]
[367134917,1750665117646,-559.89,0.00029315,3]
[367134918,1750665117655,-1923.63,0.00029315,3]
[367134919,1750665117666,-574.93,0.00029315,3]
[367134920,1750665117676,-490.0,0.00029315,3]
[367134921,1750665117687,-490.0,0.00029315,3]
[367134922,1750665117697,-1572.34,0.00029315,3]
[367134923,1750665117708,-490.0,0.00029315,3]
[367134924,1750665117718,-490.0,0.00029315,3]
[367134925,1750665117728,-490.0,0.00029315,3]
[367134926,1750665117737,-682.57,0.00029315,3]
[367134927,1750665117747,-490.0,0.00029315,3]
[367134928,1750665117757,-1697.22,0.00029315,3]
[367134929,1750665117766,-490.0,0.00029315,3]
[367134930,1750665117777,-880.29,0.00029315,3]
[367134931,1750665117787,-464.97326328,0.00029315,3]
[367134932,1750665117797,-1269.91,0.00029315,3]
[367134933,1750665117806,-710.25,0.00029315,3]
[367134934,1750665117815,-490.0,0.00029315,3]
[367134935,1750665117825,-813.4,0.00029315,3]
[367134936,1750665117835,-2095.98,0.00029315,3]
[367134937,1750665117844,-490.0,0.00029315,3]
[367134938,1750665117854,-860.56,0.00029315,3]
[367134939,1750665117863,-490.0,0.00029315,3]
[367134940,1750665117873,-1189.08,0.00029315,3]
[367134941,1750665117883,-367.35829098,0.00029315,3]
[367134942,1750665117893,-592.68,0.00029315,3]
[367134943,1750665117902,-490.0,0.00029315,3]
[367134944,1750665117911,-1404.19,0.00029315,3]
[367134945,1750665117921,-693.19,0.00029315,2]
[367134946,1750665117931,-490.0,0.00029315,3]
[367134947,1750665117944,-1041.14,0.00029315,3]
[367134948,1750665117954,-561.01435331,0.00029315,3]
[367134949,1750665117963,-1153.44,0.00029315,3]
[367134950,1750665117972,-562.57,0.00029315,3]
[367134951,1750665117981,-490.0,0.00029315,3]
[367134952,1750665117991,-1104.92,0.00029315,3]
[367134953,1750665118001,-490.0,0.00029315,3]
[367134954,1750665118010,-1408.6,0.00029315,3]
[367134955,1750665118020,-490.0,0.00029315,3]
[367134956,1750665118030,-1311.06,0.00029315,3]
[367134957,1750665118039,-490.0,0.00029315,3]
[367134958,1750665118048,-1143.07,0.00029315,3]
[367134959,1750665118058,-490.0,0.00029315,3]
[367134960,1750665118067,-1915.03,0.00029315,3]
[367134961,1750665118077,-490.0,0.00029315,3]
[367134962,1750665118087,-1096.22,0.00029315,3]
[367134963,1750665118096,-763.88,0.00029315,3]
[367134964,1750665118107,-1133.12,0.00029315,3]
[367134965,1750665118326,-490.0,0.00029315,3]
[367134966,1750665118336,-1026.56,0.00029315,3]
[367134967,1750665118346,-490.0,0.00029315,3]
[367134968,1750665118356,-1230.65,0.00029315,3]
[367134969,1750665118366,-490.0,0.00029315,3]
[367134970,1750665118375,-1008.53,0.00029315,3]
[367134971,1750665118385,-300.0,0.00029315,3]
[367134972,1750665118394,-1722.2,0.00029315,3]
[367134973,1750665118403,-1588.78,0.00029315,3]
[367134974,1750665118413,-490.0,0.00029315,3]
[367134975,1750665118422,-490.0,0.00029315,3]
[367134976,1750665118431,-961.21,0.00029315,3]
[367134977,1750665118440,-490.0,0.00029315,3]
[367134978,1750665118450,-896.42,0.00029315,3]
[367134979,1750665118458,-490.0,0.00029315,3]
[367134980,1750665118467,-633.05,0.00029315,3]
[367134981,1750665118477,-1367.92,0.00029315,3]
[367134982,1750665118487,-844.81,0.00029315,3]
[367134983,1750665118496,-542.77,0.00029315,3]
[367134984,1750665118505,-611.73,0.00029315,3]
[367134985,1750665118515,-156.96515604,0.00029315,3]
[367134986,1750665118524,-807.21,0.00029315,3]
[367134987,1750665118533,-956.99,0.00029315,3]
[367134988,1750665118542,-1617.12,0.00029315,3]
[367134989,1750665118551,-490.0,0.00029315,3]
[367134990,1750665118561,-519.34,0.00029315,3]
[367134991,1750665118571,-848.71,0.00029315,3]
[367134992,1750665118580,-790.76,0.00029315,3]
[367134993,1750665118589,-613.34,0.00029315,3]
[367134994,1750665118598,-742.62,0.00029315,3]
[367134995,1750665118608,-2760.23,0.00029315,3]
[367134996,1750665118617,-2345.46,0.00029315,2]
[367134997,1750665118627,-1288.97,0.00029315,3]
[367134998,1750665118636,-1422.0,0.00029315,3]
[367134999,1750665118645,-1019.17,0.00029315,3]
[367135000,1750665118655,-1327.38,0.00029315,3]
[367135001,1750665118665,-490.0,0.00029315,3]
[367135002,1750665118674,-608.9,0.00029315,3]
[367135003,1750665118684,-490.0,0.00029315,3]
[367135004,1750665118693,-1180.83,0.00029315,3]
[367135005,1750665118703,-490.0,0.00029315,3]
[367135006,1750665118712,-692.81,0.00029315,3]
[367135007,1750665118722,-490.0,0.00029315,3]
[367135008,1750665118731,-490.0,0.00029315,3]
[367135009,1750665118741,-778.5,0.00029315,3]
[367135010,1750665118750,-490.0,0.00029315,3]
[367135011,1750665118759,-1065.89,0.00029315,3]
[367135012,1750665118769,-665.43,0.00029315,3]
[367135013,1750665118779,-637.7,0.00029315,3]
[367135014,1750665118788,-1166.57,0.00029315,3]
[367135015,1750665118798,-625.83,0.00029315,3]
[367135016,1750665118807,-1508.28,0.00029315,3]
[367135017,1750665118819,-526.99,0.00029315,3]
[367135018,1750665118828,-613.21,0.00029315,3]
[367135019,1750665118838,-1559.17,0.00029315,3]
[367135020,1750665118847,-151.0,0.00029315,7]
[367135021,1750665118856,-490.0,0.00029315,3]
[367135022,1750665118866,-610.21,0.00029315,3]
[367135023,1750665118875,-714.94,0.00029315,3]
[367135024,1750665118885,-963.94,0.00029315,3]
[367135025,1750665118895,-868.65,0.00029315,3]
[367135026,1750665118904,-490.0,0.00029315,3]
[367135027,1750665118914,-1081.49,0.00029315,3]
[367135028,1750665118922,-490.0,0.00029315,3]
[367135029,1750665118931,-566.45,0.00029315,3]
[367135030,1750665118946,-1232.32,0.00029315,3]
[367135031,1750665118955,-1100.0,0.00029315,3]
[367135032,1750665118965,-1694.0,0.00029315,3]
[367135033,1750665118974,-490.0,0.00029315,3]
[367135034,1750665118984,-1228.14,0.00029315,3]
[367135035,1750665118992,-818.43,0.00029315,3]
[367135036,1750665119001,-490.0,0.00029315,3]
[367135037,1750665119011,-490.0,0.00029315,3]
[367135038,1750665119022,-835.03,0.00029315,3]
[367135039,1750665119032,-551.94,0.00029315,3]
[367135040,1750665119042,-1222.96,0.00029315,3]
[367135041,1750665119051,-490.0,0.00029315,3]
[367135042,1750665119061,-487.37847794,0.00029315,3]
[367135043,1750665119071,-490.0,0.00029315,3]
[367135044,1750665119080,-880.33,0.00029315,3]
[367135045,1750665119089,-1308.03,0.00029315,3]
[367135046,1750665119098,-490.0,0.00029315,3]
[367135047,1750665119107,-490.0,0.00029315,3]
[367135048,1750665119116,-749.38,0.00029315,3]
[367135049,1750665119126,-490.0,0.00029315,3]
[367135050,1750665119135,-906.2,0.00029315,3]
[367135051,1750665119145,-632.2,0.00029315,3]
[367135052,1750665119154,-736.07,0.00029315,3]
[367135053,1750665119164,-209.42844065,0.00029315,3]
[367135054,1750665119173,-1159.93,0.00029315,3]
[367135055,1750665119183,-490.0,0.00029315,3]
[367135056,1750665119192,-717.88,0.00029315,3]
[367135057,1750665119201,-490.0,0.00029315,3]
[367135058,1750665119211,-793.46,0.00029315,3]
[367135059,1750665119220,-490.0,0.00029315,3]
[367135060,1750665119229,-1185.89,0.00029315,3]
[367135061,1750665119239,-1156.86,0.00029315,3]
[367135062,1750665119248,-1745.89,0.00029315,3]
[367135063,1750665119257,-991.3,0.00029315,3]
[367135064,1750665119267,-490.0,0.00029315,3]
[367135065,1750665119276,-490.0,0.00029315,3]
[367135066,1750665119285,-648.95,0.00029315,3]
[367135067,1750665119295,-815.02,0.00029315,3]
[367135068,1750665119304,-830.59,0.00029315,3]
[367135069,1750665119313,-490.0,0.00029315,3]
[367135070,1750665119324,-1055.32,0.00029315,3]
[367135071,1750665119333,-490.0,0.00029315,3]
[367135072,1750665119342,-490.0,0.00029315,3]
[367135073,1750665119351,-599.34,0.00029315,3]
[367135074,1750665119360,-1112.63,0.00029315,3]
[367135075,1750665119370,-490.0,0.00029315,3]
[367135076,1750665119379,-573.3,0.00029315,3]
[367135077,1750665119388,-1313.29,0.00029315,3]
[367135078,1750665119397,-546.93,0.00029315,3]
[367135079,1750665119407,-878.57,0.00029315,3]
[367135080,1750665119417,-1631.12,0.00029315,3]
[367135081,1750665119427,-490.0,0.00029315,3]
[367135082,1750665119439,-490.0,0.00029315,3]
[367135083,1750665119449,-735.78,0.00029315,3]
[367135084,1750665119458,-636.12,0.00029315,3]
[367135085,1750665119467,-490.0,0.00029315,3]
[367135086,1750665119476,-2393.15,0.00029315,3]
[367135087,1750665119486,-151.0,0.00029315,7]
[367135088,1750665119495,-490.0,0.00029315,3]
[367135089,1750665119504,-494.91,0.00029315,3]
[367135090,1750665119514,-682.52,0.00029315,3]
[367135091,1750665119523,-490.0,0.00029315,3]
[367135092,1750665119533,-992.14,0.00029315,3]
[367135093,1750665119542,-792.47,0.00029315,3]
[367135094,1750665119551,-694.47,0.00029315,3]
[367135095,1750665119560,-151.0,0.00029315,7]
[367135096,1750665119569,-571.27,0.00029315,3]
[367135097,1750665119578,-642.38,0.00029315,3]
[367135098,1750665119587,-490.0,0.00029315,3]
[367135099,1750665119596,-1226.31,0.00029315,3]
[367135100,1750665119605,-490.0,0.00029315,3]
[367135101,1750665119614,-1123.21,0.00029315,3]
[367135102,1750665119623,-490.0,0.00029315,3]
[367135103,1750665119632,-294.52875,0.00029315,7]
[367135104,1750665119642,-1133.23,0.00029315,3]
[367135105,1750665119651,-518.3,0.00029315,3]
[367135106,1750665119660,-490.0,0.00029315,3]
[367135107,1750665119671,-490.0,0.00029315,3]
[367135108,1750665119680,-294.52875,0.00029315,7]
[367135109,1750665119690,-578.64,0.00029315,3]
[367135110,1750665119699,-670.7,0.00029315,3]
[367135111,1750665119708,-993.54,0.00029315,3]
[367135112,1750665119717,-490.0,0.00029315,3]
[367135113,1750665119727,-967.76,0.00029315,3]
[367135114,1750665119737,-508.66,0.00029315,3]
[367135115,1750665119746,-490.0,0.00029315,3]
[367135116,1750665119756,-3755.94,0.00029315,3]
[367135117,1750665119765,-490.0,0.00029315,3]
[367135118,1750665119774,-582.53,0.00029315,3]
[367135119,1750665119784,-505.58,0.00029315,3]
[367135120,1750665119793,-2144.51,0.00029315,3]
[367135121,1750665119802,-490.0,0.00029315,3]
[367135122,1750665119811,-490.0,0.00029315,3]
[367135123,1750665119820,-522.07570862,0.00029315,3]
[367135124,1750665119829,-602.49467131,0.00029315,3]
[367135125,1750665119838,-301.88,0.00029315,3]
[367135126,1750665119848,-561.18,0.00029315,3]
[367135127,1750665119857,-528.73,0.00029315,3]
[367135128,1750665119867,-1111.73,0.00029315,3]
[367135129,1750665119876,-949.02,0.00029315,3]
[367135130,1750665119885,-490.0,0.00029315,3]
[367135131,1750665119895,-4587.21,0.00029315,3]
[367135132,1750665119904,-490.0,0.00029315,3]
[367135133,1750665119914,-525.95,0.00029315,3]
[367135134,1750665119924,-621.21,0.00029315,3]
[367135135,1750665119934,-1169.57,0.00029315,3]
[367135136,1750665119946,-2316.39,0.00029315,3]
[367135137,1750665119955,-490.0,0.00029315,3]
[367135138,1750665119964,-490.0,0.00029315,3]
[367135139,1750665119973,-956.96,0.00029315,3]
[367135140,1750665119983,-1387.9,0.00029315,3]
[367135141,1750665119992,-691.28,0.00029315,3]
[367135142,1750665120002,-10717.07,0.00029315,3]
[367135143,1750665120012,-917.45,0.00029315,3]
[367135144,1750665120022,-1088.76,0.00029315,3]
[367135145,1750665120031,-595.21,0.00029315,3]
[367135146,1750665120040,-490.0,0.00029315,3]
[367135147,1750665120049,-702.14,0.00029315,3]
[367135148,1750665120058,-490.0,0.00029315,3]
[367135149,1750665120067,-864.46,0.00029315,3]
[367135150,1750665120076,-1079.72,0.00029315,3]
[367135151,1750665120085,-490.0,0.00029315,3]
[367135152,1750665120095,-192.4,0.00029315,3]
[367135153,1750665120104,-817.64,0.00029315,3]
[367135154,1750665120114,-774.97,0.00029315,3]
[367135155,1750665120124,-4643.17,0.00029315,3]
[367135156,1750665120133,-1077.61,0.00029315,3]
[367135157,1750665120141,-490.0,0.00029315,3]
[367135158,1750665120151,-1165.94,0.00029315,3]
[367135159,1750665120160,-4614.84,0.00029315,3]
[367135160,1750665120170,-490.0,0.00029315,3]
[367135161,1750665120180,-2049.2,0.00029315,3]
[367135162,1750665120189,-652.3,0.00029315,3]
[367135163,1750665120200,-151.0,0.00029315,7]
[367135164,1750665120209,-490.0,0.00029315,3]
[367135165,1750665120219,-809.74,0.00029315,3]
[367135166,1750665120229,-1363.03,0.00029315,3]
[367135167,1750665120239,-553.84,0.00029315,3]
[367135168,1750665120249,-508.05,0.00029315,3]
[367135169,1750665120258,-187.919547,0.00029315,7]
[367135170,1750665120267,-1489.9,0.00029315,3]
[367135171,1750665120277,-215.544139,0.00029315,7]
[367135172,1750665120286,-1190.7,0.00029315,3]
[367135173,1750665120295,-1280.57,0.00029315,3]
[367135174,1750665120304,-490.0,0.00029315,3]
[367135175,1750665120313,-1200.07,0.00029315,3]
[367135176,1750665120322,-215.544139,0.00029315,7]
[367135177,1750665120331,-1170.78,0.00029315,3]
[367135178,1750665120341,-490.0,0.00029315,3]
[367135179,1750665120350,-490.0,0.00029315,3]
[367135180,1750665120360,-956.44,0.00029315,3]
[367135181,1750665120369,-1009.65,0.00029315,3]
[367135182,1750665120379,-869.62,0.00029315,3]
[367135183,1750665120387,-1423.29,0.00029315,3]
[367135184,1750665120396,-572.0,0.00029315,3]
[367135185,1750665120407,-539.83,0.00029315,3]
[367135186,1750665120417,-3180.4,0.00029315,3]
[367135187,1750665120427,-747.63,0.00029315,3]
[367135188,1750665120437,-992.64,0.00029315,3]
[367135189,1750665120446,-445.995582,0.00029315,7]
[367135190,1750665120455,-490.0,0.00029315,3]
[367135191,1750665120465,-1140.49,0.00029315,3]
[367135192,1750665120474,-615.7,0.00029315,3]
[367135193,1750665120483,-852.0,0.00029315,3]
[367135194,1750665120493,-490.0,0.00029315,3]
[367135195,1750665120503,-445.995582,0.00029315,7]
[367135196,1750665120512,-1016.47,0.00029315,3]
[367135197,1750665120522,-966.13,0.00029315,3]
[367135198,1750665120531,-2112.61,0.00029315,3]
[367135199,1750665120540,-1260.84,0.00029315,3]
[367135200,1750665120549,-575.92,0.00029315,3]
[367135201,1750665120559,-926.89,0.00029315,3]
[367135202,1750665120568,-699.39,0.00029315,3]
[367135203,1750665120577,-661.4,0.00029315,3]
[367135204,1750665120587,-543.13,0.00029315,3]
[367135205,1750665120596,-1188.57,0.00029315,3]
[367135206,1750665120605,-7307.56,0.00029315,3]
[367135207,1750665120615,-1275.33,0.00029315,3]
[367135208,1750665120624,-490.0,0.00029315,3]
[367135209,1750665120633,-649.03,0.00029315,3]
[367135210,1750665120642,-1148.8,0.00029315,3]
[367135211,1750665120652,-1769.62,0.00029315,3]
[367135212,1750665120662,-1684.74,0.00029315,3]
[367135213,1750665120673,-1245.46,0.00029315,3]
[367135214,1750665120683,-490.0,0.00029315,3]
[367135215,1750665120693,-490.0,0.00029315,3]
[367135216,1750665120703,-946.71,0.00029315,3]
[367135217,1750665120713,-2328.53,0.00029315,3]
[367135218,1750665120723,-1790.2,0.00029315,3]
[367135219,1750665120732,-490.0,0.00029315,3]
[367135220,1750665120743,-490.0,0.00029315,3]
[367135221,1750665120753,-490.0,0.00029315,3]
[367135222,1750665120763,-490.0,0.00029315,3]
[367135223,1750665120773,-490.0,0.00029315,3]
[367135224,1750665120782,-569.78,0.00029315,3]
[367135225,1750665120792,-1584.55,0.00029315,3]
[367135226,1750665120802,-1146.51,0.00029315,3]
[367135227,1750665120811,-490.0,0.00029315,3]
[367135228,1750665120821,-721.25,0.00029315,3]
[367135229,1750665120830,-151.0,0.00029315,7]
[367135230,1750665120840,-1416.9,0.00029315,3]
[367135231,1750665120849,-1328.97,0.00029315,3]
[367135232,1750665120859,-1180.0,0.00029315,3]
[367135233,1750665120868,-1878.33,0.00029315,3]
[367135234,1750665120878,-490.0,0.00029315,3]
[367135235,1750665120888,-1168.59,0.00029315,3]
[367135236,1750665120898,-1333.53,0.00029315,3]
[367135237,1750665120907,-631.77,0.00029315,3]
[367135238,1750665120919,-1620.62,0.00029315,3]
[367135239,1750665120928,-1030.66,0.00029315,3]
[367135240,1750665120941,-490.0,0.00029315,3]
[367135241,1750665120951,-1543.7,0.00029315,3]
[367135242,1750665120961,-490.0,0.00029315,3]
[367135243,1750665120970,-490.0,0.00029315,3]
[367135244,1750665120980,-811.77,0.00029315,3]
[367135245,1750665120989,-1156.18,0.00029315,3]
[367135246,1750665120998,-1152.47,0.00029315,3]
[367135247,1750665121008,-1328.16,0.00029315,3]
[367135248,1750665121017,-892.28,0.00029315,3]
[367135249,1750665121028,-926.55,0.00029315,3]
[367135250,1750665121037,-5128.86,0.00029315,3]
[367135251,1750665121047,-929.97,0.00029315,3]
[367135252,1750665121056,-895.24,0.00029315,3]
[367135253,1750665121065,-514.94,0.00029315,3]
[367135254,1750665121075,-647.41,0.00029315,3]
[367135255,1750665121084,-1059.11,0.00029315,3]
[367135256,1750665121093,-3162.98,0.00029315,3]
[367135257,1750665121103,-10436.94,0.00029315,3]
[367135258,1750665121113,-490.0,0.00029315,3]
[367135259,1750665121122,-1189.53,0.00029315,3]
[367135260,1750665121132,-2195.9,0.00029315,3]
[367135261,1750665121142,-2202.71,0.00029315,3]
[367135262,1750665121151,-624.22,0.00029315,3]
[367135263,1750665121161,-1149.03,0.00029315,3]
[367135264,1750665121174,-4270.68,0.00029315,3]
[367135265,1750665121184,-534.25,0.00029315,3]
[367135266,1750665121194,-545.8,0.00029315,3]
[367135267,1750665121203,-490.0,0.00029315,3]
[367135268,1750665121213,-490.0,0.00029315,3]
[367135269,1750665121223,-1252.75,0.00029315,3]
[367135270,1750665121233,-1146.08,0.00029315,3]
[367135271,1750665121242,-1122.82,0.00029315,3]
[367135272,1750665121252,-490.0,0.00029315,3]
[367135273,1750665121262,-490.0,0.00029315,3]
[367135274,1750665121272,-2352.77,0.00029315,3]
[367135275,1750665121281,-1981.72,0.00029315,3]
[367135276,1750665121290,-623.98,0.00029315,3]
[367135277,1750665121300,-2769.06,0.00029315,3]
[367135278,1750665121309,-679.042121,0.00029315,7]
[367135279,1750665121319,-502.64,0.00029315,3]
[367135280,1750665121328,-490.0,0.00029315,3]
[367135281,1750665121338,-679.042121,0.00029315,7]
[367135282,1750665121347,-1210.66,0.00029315,3]
[367135283,1750665121357,-1247.42,0.00029315,3]
[367135284,1750665121366,-707.04,0.00029315,3]
[367135285,1750665121571,-544.19,0.00029315,3]
[367135286,1750665121583,-490.0,0.00029315,3]
[367135287,1750665121593,-1979.61,0.00029315,3]
[367135288,1750665121602,-1987.6,0.00029315,3]
[367135289,1750665121612,-10751.97,0.00029315,3]
[367135290,1750665121621,-1076.76,0.00029315,3]
[367135291,1750665121631,-490.0,0.00029315,3]
[367135292,1750665121640,-3423.31,0.00029315,3]
[367135293,1750665121650,-2864.01,0.00029315,3]
[367135294,1750665121661,-490.0,0.00029315,3]
[367135295,1750665121671,-633.23,0.00029315,3]
[367135296,1750665121681,-490.0,0.00029315,3]
[367135297,1750665121691,-490.0,0.00029315,3]
[367135298,1750665121701,-1075.42,0.00029315,3]
[367135299,1750665121711,-2220.11,0.00029315,3]
[367135300,1750665121721,-857.04,0.00029315,3]
[367135301,1750665121730,-490.0,0.00029315,3]
[367135302,1750665121740,-2716.97,0.00029315,3]
[367135303,1750665121750,-1140.15,0.00029315,3]
[367135304,1750665121759,-523.71,0.00029315,3]
[367135305,1750665121769,-1223.01,0.00029315,3]
[367135306,1750665121778,-769.91,0.00029315,3]
[367135307,1750665121787,-624.14,0.00029315,3]
[367135308,1750665121797,-2084.11,0.00029315,3]
[367135309,1750665121807,-1554.38,0.00029315,3]
[367135310,1750665121817,-490.0,0.00029315,3]
[367135311,1750665121827,-1131.67,0.00029315,3]
[367135312,1750665121836,-1755.29,0.00029315,3]
[367135313,1750665121846,-1845.26,0.00029315,3]
[367135314,1750665121857,-1112.49,0.00029315,3]
[367135315,1750665121867,-1617.72,0.00029315,3]
[367135316,1750665121877,-1167.6,0.00029315,3]
[367135317,1750665121887,-1688.6,0.00029315,3]
[367135318,1750665121897,-986.26,0.00029315,3]
[367135319,1750665121909,-1394.31,0.00029315,3]
[367135320,1750665121919,-1481.37,0.00029315,3]
[367135321,1750665121929,-5812.93,0.00029315,3]
[367135322,1750665121944,-1040.55,0.00029315,3]
[367135323,1750665121955,-440.16947873,0.00029315,3]
[367135324,1750665121966,-490.0,0.00029315,3]
[367135325,1750665121977,-4291.55,0.00029315,3]
[367135326,1750665121988,-933.58,0.00029315,3]
[367135327,1750665121999,-1044.21,0.00029315,3]
[367135328,1750665122009,-1656.36,0.00029315,3]
[367135329,1750665122021,-1188.44,0.00029315,3]
[367135330,1750665122033,-712.63,0.00029315,3]
[367135331,1750665122043,-955.97,0.00029315,3]
[367135332,1750665122054,-490.0,0.00029315,3]
[367135333,1750665122066,-1229.83,0.00029315,3]
[367135334,1750665122076,-490.0,0.00029315,3]
[367135335,1750665122087,-725.05,0.00029315,3]
[367135336,1750665122098,-1130.89,0.00029315,3]
[367135337,1750665122108,-300.0,0.00029315,3]
[367135338,1750665122118,-505.79,0.00029315,3]